{"text_format":"3","workbook":"xlsx","n_sheets":1,"sheets":["תקציב חודשי אישי"],"read":"whole","date_system":"1900"}

{"sheet":"תקציב חודשי אישי","index":0,"n_rows":62,"n_cols":10,"rows_kept":62,"merged":[[0,1,0,9],[2,1,4,1],[2,2,2,3],[2,7,2,8],[3,2,3,3],[3,7,3,8],[4,2,4,3],[4,6,4,8],[5,1,7,1],[5,2,5,3],[5,7,5,8],[6,2,6,3],[6,7,6,8],[7,2,7,3],[7,6,7,8],[20,6,20,9],[21,1,21,4],[29,6,29,9],[31,1,31,4],[36,6,36,9],[38,1,38,4],[42,6,42,9],[44,1,44,4],[48,6,48,9],[52,1,52,4],[55,6,55,9]]}
[null,"תקציב חודשי אישי"]
[]
[null,"הכנסות חודשיות מתוכננות","הכנסה 1",null,{"v":2500,"d":"₪ 2,500"},null,"סה\"כ הוצאות מתוכננות ","(ההכנסות המתוכננות פחות ההוצאות)",null,{"$f":"SUM(C21,C31,C38,C44,C52,C62,H20,H29,H36,H42,H48,H55)","v":{"v":2060,"d":"₪ 2,060"}}]
[null,null,"הכנסה נוספת",null,{"v":500,"d":"₪ 500"},null,"סה\"כ הוצאות בפועל ","(ההכנסות בפועל פחות ההוצאות)",null,{"$f":"SUM(D21,D31,D38,D44,D52,D62,I20,I29,I36,I42,I48,I55)","v":{"v":2040,"d":"₪ 2,040"}}]
[null,null,"סה\"כ הכנסות חודשיות",null,{"$f":"SUM(E3:E4)","v":{"v":3000,"d":"₪ 3,000"}},null,"סה\"כ הפרש בהוצאות",null,null,{"$f":"SUM(E21,E31,E38,E44,E52,E62,J20,J29,J36,J42,J48,J55)","v":{"v":20,"d":"₪ 20"}}]
[null,"הכנסות חודשיות בפועל","הכנסה 1",null,{"v":2500,"d":"₪ 2,500"},null,"יתרה מתוכננת","(ההכנסות המתוכננות פחות ההוצאות)",null,{"$f":"E5-J3","v":{"v":940,"d":"₪ 940"}}]
[null,null,"הכנסה נוספת",null,{"v":500,"d":"₪ 500"},null,"יתרה בפועל","(ההכנסות בפועל פחות ההוצאות)",null,{"$f":"E8-J4","v":{"v":960,"d":"₪ 960"}}]
[null,null,"סה\"כ הכנסות חודשיות",null,{"$f":"SUM(E6:E7)","v":{"v":3000,"d":"₪ 3,000"}},null,"הפרש ביתרה (בפועל פחות מתוכננת)",null,null,{"$f":"J7-J6","v":{"v":20,"d":"₪ 20"}}]
[]
[null,"דיור","עלות מתוכננת","עלות בפועל","הפרש",null,"בידור","עלות מתוכננת","עלות בפועל","הפרש"]
[null,"משכנתה או שכ\"ד",{"v":1500,"d":"₪ 1,500"},{"v":1400,"d":"₪ 1,400"},{"$f":"דיור[[#This Row],[עלות מתוכננת]]-דיור[[#This Row],[עלות בפועל]]","v":{"v":100,"d":"₪ 100"}},null,"וידאו/DVD",{"v":0,"d":"₪ 0"},{"v":50,"d":"₪ 50"},{"$f":"בידור[[#This Row],[עלות מתוכננת]]-בידור[[#This Row],[עלות בפועל]]","v":{"v":-50,"d":"-₪ 50"}}]
[null,"טלפון",{"v":60,"d":"₪ 60"},{"v":100,"d":"₪ 100"},{"$f":"דיור[[#This Row],[עלות מתוכננת]]-דיור[[#This Row],[עלות בפועל]]","v":{"v":-40,"d":"-₪ 40"}},null,"תקליטורים",null,null,{"$f":"בידור[[#This Row],[עלות מתוכננת]]-בידור[[#This Row],[עלות בפועל]]","v":{"v":0,"d":"₪ 0"}}]
[null,"חשמל",{"v":50,"d":"₪ 50"},{"v":60,"d":"₪ 60"},{"$f":"דיור[[#This Row],[עלות מתוכננת]]-דיור[[#This Row],[עלות בפועל]]","v":{"v":-10,"d":"-₪ 10"}},null,"סרטים",null,null,{"$f":"בידור[[#This Row],[עלות מתוכננת]]-בידור[[#This Row],[עלות בפועל]]","v":{"v":0,"d":"₪ 0"}}]
[null,"גז",{"v":200,"d":"₪ 200"},{"v":180,"d":"₪ 180"},{"$f":"דיור[[#This Row],[עלות מתוכננת]]-דיור[[#This Row],[עלות בפועל]]","v":{"v":20,"d":"₪ 20"}},null,"מופעים",null,null,{"$f":"בידור[[#This Row],[עלות מתוכננת]]-בידור[[#This Row],[עלות בפועל]]","v":{"v":0,"d":"₪ 0"}}]
[null,"מים וביוב",null,null,{"$f":"דיור[[#This Row],[עלות מתוכננת]]-דיור[[#This Row],[עלות בפועל]]","v":{"v":0,"d":"₪ 0"}},null,"אירועי ספורט",null,null,{"$f":"בידור[[#This Row],[עלות מתוכננת]]-בידור[[#This Row],[עלות בפועל]]","v":{"v":0,"d":"₪ 0"}}]
[null,"טלוויזיה בכבלים",null,null,{"$f":"דיור[[#This Row],[עלות מתוכננת]]-דיור[[#This Row],[עלות בפועל]]","v":{"v":0,"d":"₪ 0"}},null,"תיאטרון",null,null,{"$f":"בידור[[#This Row],[עלות מתוכננת]]-בידור[[#This Row],[עלות בפועל]]","v":{"v":0,"d":"₪ 0"}}]
[null,"סילוק פסולת",null,null,{"$f":"דיור[[#This Row],[עלות מתוכננת]]-דיור[[#This Row],[עלות בפועל]]","v":{"v":0,"d":"₪ 0"}},null,"אחר",null,null,{"$f":"בידור[[#This Row],[עלות מתוכננת]]-בידור[[#This Row],[עלות בפועל]]","v":{"v":0,"d":"₪ 0"}}]
[null,"תחזוקה או תיקונים",null,null,{"$f":"דיור[[#This Row],[עלות מתוכננת]]-דיור[[#This Row],[עלות בפועל]]","v":{"v":0,"d":"₪ 0"}},null,"אחר",null,null,{"$f":"בידור[[#This Row],[עלות מתוכננת]]-בידור[[#This Row],[עלות בפועל]]","v":{"v":0,"d":"₪ 0"}}]
[null,"ציוד",null,null,{"$f":"דיור[[#This Row],[עלות מתוכננת]]-דיור[[#This Row],[עלות בפועל]]","v":{"v":0,"d":"₪ 0"}},null,"אחר",null,null,{"$f":"בידור[[#This Row],[עלות מתוכננת]]-בידור[[#This Row],[עלות בפועל]]","v":{"v":0,"d":"₪ 0"}}]
[null,"אחר",null,null,{"$f":"דיור[[#This Row],[עלות מתוכננת]]-דיור[[#This Row],[עלות בפועל]]","v":{"v":0,"d":"₪ 0"}},null,"סה\"כ",{"$f":"SUBTOTAL(109,בידור[עלות מתוכננת])","v":{"v":0,"d":"₪ 0"}},{"$f":"SUBTOTAL(109,בידור[עלות בפועל])","v":{"v":50,"d":"₪ 50"}},{"$f":"SUBTOTAL(109,בידור[הפרש])","v":{"v":-50,"d":"-₪ 50"}}]
[null,"סה\"כ",{"$f":"SUBTOTAL(109,דיור[עלות מתוכננת])","v":{"v":1810,"d":"₪ 1,810"}},{"$f":"SUBTOTAL(109,דיור[עלות בפועל])","v":{"v":1740,"d":"₪ 1,740"}},{"$f":"SUBTOTAL(109,דיור[הפרש])","v":{"v":70,"d":"₪ 70"}}]
[{"$nulls":6},"הלוואות","עלות מתוכננת","עלות בפועל","הפרש"]
[null,"תחבורה","עלות מתוכננת","עלות בפועל","הפרש",null,"אישית",null,null,{"$f":"הלוואות[[#This Row],[עלות מתוכננת]]-הלוואות[[#This Row],[עלות בפועל]]","v":{"v":0,"d":"₪ 0"}}]
[null,"תשלום רכב",{"v":250,"d":"₪ 250"},{"v":250,"d":"₪ 250"},{"$f":"תחבורה[[#This Row],[עלות מתוכננת]]-תחבורה[[#This Row],[עלות בפועל]]","v":{"v":0,"d":"₪ 0"}},null,"סטודנט",null,null,{"$f":"הלוואות[[#This Row],[עלות מתוכננת]]-הלוואות[[#This Row],[עלות בפועל]]","v":{"v":0,"d":"₪ 0"}}]
[null,"תשלום עבור אוטובוס/מונית",null,null,{"$f":"תחבורה[[#This Row],[עלות מתוכננת]]-תחבורה[[#This Row],[עלות בפועל]]","v":{"v":0,"d":"₪ 0"}},null,"כרטיס אשראי",null,null,{"$f":"הלוואות[[#This Row],[עלות מתוכננת]]-הלוואות[[#This Row],[עלות בפועל]]","v":{"v":0,"d":"₪ 0"}}]
[null,"ביטוח",null,null,{"$f":"תחבורה[[#This Row],[עלות מתוכננת]]-תחבורה[[#This Row],[עלות בפועל]]","v":{"v":0,"d":"₪ 0"}},null,"כרטיס אשראי",null,null,{"$f":"הלוואות[[#This Row],[עלות מתוכננת]]-הלוואות[[#This Row],[עלות בפועל]]","v":{"v":0,"d":"₪ 0"}}]
[null,"רישוי",null,null,{"$f":"תחבורה[[#This Row],[עלות מתוכננת]]-תחבורה[[#This Row],[עלות בפועל]]","v":{"v":0,"d":"₪ 0"}},null,"כרטיס אשראי",null,null,{"$f":"הלוואות[[#This Row],[עלות מתוכננת]]-הלוואות[[#This Row],[עלות בפועל]]","v":{"v":0,"d":"₪ 0"}}]
[null,"דלק",null,null,{"$f":"תחבורה[[#This Row],[עלות מתוכננת]]-תחבורה[[#This Row],[עלות בפועל]]","v":{"v":0,"d":"₪ 0"}},null,"אחר",null,null,{"$f":"הלוואות[[#This Row],[עלות מתוכננת]]-הלוואות[[#This Row],[עלות בפועל]]","v":{"v":0,"d":"₪ 0"}}]
[null,"תחזוקה",null,null,{"$f":"תחבורה[[#This Row],[עלות מתוכננת]]-תחבורה[[#This Row],[עלות בפועל]]","v":{"v":0,"d":"₪ 0"}},null,"סה\"כ",{"$f":"SUBTOTAL(109,הלוואות[עלות מתוכננת])","v":{"v":0,"d":"₪ 0"}},{"$f":"SUBTOTAL(109,הלוואות[עלות בפועל])","v":{"v":0,"d":"₪ 0"}},{"$f":"SUBTOTAL(109,הלוואות[הפרש])","v":{"v":0,"d":"₪ 0"}}]
[null,"אחר",null,null,{"$f":"תחבורה[[#This Row],[עלות מתוכננת]]-תחבורה[[#This Row],[עלות בפועל]]","v":{"v":0,"d":"₪ 0"}}]
[null,"סה\"כ",{"$f":"SUBTOTAL(109,תחבורה[עלות מתוכננת])","v":{"v":250,"d":"₪ 250"}},{"$f":"SUBTOTAL(109,תחבורה[עלות בפועל])","v":{"v":250,"d":"₪ 250"}},{"$f":"SUBTOTAL(109,תחבורה[הפרש])","v":{"v":0,"d":"₪ 0"}},null,"מסים","עלות מתוכננת","עלות בפועל","הפרש"]
[{"$nulls":6},"פדרלי",null,null,{"$f":"מסים[[#This Row],[עלות מתוכננת]]-מסים[[#This Row],[עלות בפועל]]","v":{"v":0,"d":"₪ 0"}}]
[null,"ביטוח","עלות מתוכננת","עלות בפועל","הפרש",null,"של המדינה",null,null,{"$f":"מסים[[#This Row],[עלות מתוכננת]]-מסים[[#This Row],[עלות בפועל]]","v":{"v":0,"d":"₪ 0"}}]
[null,"בית",null,null,{"$f":"ביטוח[[#This Row],[עלות מתוכננת]]-ביטוח[[#This Row],[עלות בפועל]]","v":{"v":0,"d":"₪ 0"}},null,"מקומי",null,null,{"$f":"מסים[[#This Row],[עלות מתוכננת]]-מסים[[#This Row],[עלות בפועל]]","v":{"v":0,"d":"₪ 0"}}]
[null,"בריאות",null,null,{"$f":"ביטוח[[#This Row],[עלות מתוכננת]]-ביטוח[[#This Row],[עלות בפועל]]","v":{"v":0,"d":"₪ 0"}},null,"אחר",null,null,{"$f":"מסים[[#This Row],[עלות מתוכננת]]-מסים[[#This Row],[עלות בפועל]]","v":{"v":0,"d":"₪ 0"}}]
[null,"חיים",null,null,{"$f":"ביטוח[[#This Row],[עלות מתוכננת]]-ביטוח[[#This Row],[עלות בפועל]]","v":{"v":0,"d":"₪ 0"}},null,"סה\"כ",{"$f":"SUBTOTAL(109,מסים[עלות מתוכננת])","v":{"v":0,"d":"₪ 0"}},{"$f":"SUBTOTAL(109,מסים[עלות בפועל])","v":{"v":0,"d":"₪ 0"}},{"$f":"SUBTOTAL(109,מסים[הפרש])","v":{"v":0,"d":"₪ 0"}}]
[null,"אחר",null,null,{"$f":"ביטוח[[#This Row],[עלות מתוכננת]]-ביטוח[[#This Row],[עלות בפועל]]","v":{"v":0,"d":"₪ 0"}}]
[null,"סה\"כ",{"$f":"SUBTOTAL(109,ביטוח[עלות מתוכננת])","v":{"v":0,"d":"₪ 0"}},{"$f":"SUBTOTAL(109,ביטוח[עלות בפועל])","v":{"v":0,"d":"₪ 0"}},{"$f":"SUBTOTAL(109,ביטוח[הפרש])","v":{"v":0,"d":"₪ 0"}},null,"חסכונות או השקעות","עלות מתוכננת","עלות בפועל","הפרש"]
[{"$nulls":6},"חשבון לפרישה",null,null,{"$f":"חסכונות_או_השקעות[[#This Row],[עלות מתוכננת]]-חסכונות_או_השקעות[[#This Row],[עלות בפועל]]","v":{"v":0,"d":"₪ 0"}}]
[null,"מזון","עלות מתוכננת","עלות בפועל","הפרש",null,"חשבון להשקעה",null,null,{"$f":"חסכונות_או_השקעות[[#This Row],[עלות מתוכננת]]-חסכונות_או_השקעות[[#This Row],[עלות בפועל]]","v":{"v":0,"d":"₪ 0"}}]
[null,"מצרכים",null,null,{"$f":"מזון[[#This Row],[עלות מתוכננת]]-מזון[[#This Row],[עלות בפועל]]","v":{"v":0,"d":"₪ 0"}},null,"אחר",null,null,{"$f":"חסכונות_או_השקעות[[#This Row],[עלות מתוכננת]]-חסכונות_או_השקעות[[#This Row],[עלות בפועל]]","v":{"v":0,"d":"₪ 0"}}]
[null,"ארוחות מחוץ לבית",null,null,{"$f":"מזון[[#This Row],[עלות מתוכננת]]-מזון[[#This Row],[עלות בפועל]]","v":{"v":0,"d":"₪ 0"}},null,"סה\"כ",{"$f":"SUBTOTAL(109,חסכונות_או_השקעות[עלות מתוכננת])","v":{"v":0,"d":"₪ 0"}},{"$f":"SUBTOTAL(109,חסכונות_או_השקעות[עלות בפועל])","v":{"v":0,"d":"₪ 0"}},{"$f":"SUBTOTAL(109,חסכונות_או_השקעות[הפרש])","v":{"v":0,"d":"₪ 0"}}]
[null,"אחר",null,null,{"$f":"מזון[[#This Row],[עלות מתוכננת]]-מזון[[#This Row],[עלות בפועל]]","v":{"v":0,"d":"₪ 0"}}]
[null,"סה\"כ",{"$f":"SUBTOTAL(109,מזון[עלות מתוכננת])","v":{"v":0,"d":"₪ 0"}},{"$f":"SUBTOTAL(109,מזון[עלות בפועל])","v":{"v":0,"d":"₪ 0"}},{"$f":"SUBTOTAL(109,מזון[הפרש])","v":{"v":0,"d":"₪ 0"}},null,"מתנות ותרומות","עלות מתוכננת","עלות בפועל","הפרש"]
[{"$nulls":6},"צדקה 1",null,null,{"$f":"מתנות_ותרומות[[#This Row],[עלות מתוכננת]]-מתנות_ותרומות[[#This Row],[עלות בפועל]]","v":{"v":0,"d":"₪ 0"}}]
[null,"חיות מחמד","עלות מתוכננת","עלות בפועל","הפרש",null,"צדקה 2",null,null,{"$f":"מתנות_ותרומות[[#This Row],[עלות מתוכננת]]-מתנות_ותרומות[[#This Row],[עלות בפועל]]","v":{"v":0,"d":"₪ 0"}}]
[null,"מזון",null,null,{"$f":"חיות_מחמד[[#This Row],[עלות מתוכננת]]-חיות_מחמד[[#This Row],[עלות בפועל]]","v":{"v":0,"d":"₪ 0"}},null,"צדקה 3",null,null,{"$f":"מתנות_ותרומות[[#This Row],[עלות מתוכננת]]-מתנות_ותרומות[[#This Row],[עלות בפועל]]","v":{"v":0,"d":"₪ 0"}}]
[null,"תרופות",null,null,{"$f":"חיות_מחמד[[#This Row],[עלות מתוכננת]]-חיות_מחמד[[#This Row],[עלות בפועל]]","v":{"v":0,"d":"₪ 0"}},null,"סה\"כ",{"$f":"SUBTOTAL(109,מתנות_ותרומות[עלות מתוכננת])","v":{"v":0,"d":"₪ 0"}},{"$f":"SUBTOTAL(109,מתנות_ותרומות[עלות בפועל])","v":{"v":0,"d":"₪ 0"}},{"$f":"SUBTOTAL(109,מתנות_ותרומות[הפרש])","v":{"v":0,"d":"₪ 0"}}]
[null,"טיפוח",null,null,{"$f":"חיות_מחמד[[#This Row],[עלות מתוכננת]]-חיות_מחמד[[#This Row],[עלות בפועל]]","v":{"v":0,"d":"₪ 0"}}]
[null,"צעצועים",null,null,{"$f":"חיות_מחמד[[#This Row],[עלות מתוכננת]]-חיות_מחמד[[#This Row],[עלות בפועל]]","v":{"v":0,"d":"₪ 0"}},null,"הוצאות משפטיות","עלות מתוכננת","עלות בפועל","הפרש"]
[null,"אחר",null,null,{"$f":"חיות_מחמד[[#This Row],[עלות מתוכננת]]-חיות_מחמד[[#This Row],[עלות בפועל]]","v":{"v":0,"d":"₪ 0"}},null,"עורך דין",null,null,{"$f":"הוצאות_משפטיות[[#This Row],[עלות מתוכננת]]-הוצאות_משפטיות[[#This Row],[עלות בפועל]]","v":{"v":0,"d":"₪ 0"}}]
[null,"סה\"כ",{"$f":"SUBTOTAL(109,חיות_מחמד[עלות מתוכננת])","v":{"v":0,"d":"₪ 0"}},{"$f":"SUBTOTAL(109,חיות_מחמד[עלות בפועל])","v":{"v":0,"d":"₪ 0"}},{"$f":"SUBTOTAL(109,חיות_מחמד[הפרש])","v":{"v":0,"d":"₪ 0"}},null,"דמי מזונות",null,null,{"$f":"הוצאות_משפטיות[[#This Row],[עלות מתוכננת]]-הוצאות_משפטיות[[#This Row],[עלות בפועל]]","v":{"v":0,"d":"₪ 0"}}]
[{"$nulls":6},"תשלומי שעבוד",null,null,{"$f":"הוצאות_משפטיות[[#This Row],[עלות מתוכננת]]-הוצאות_משפטיות[[#This Row],[עלות בפועל]]","v":{"v":0,"d":"₪ 0"}}]
[null,"בריאות וטיפוח","עלות מתוכננת","עלות בפועל","הפרש",null,"אחר",null,null,{"$f":"הוצאות_משפטיות[[#This Row],[עלות מתוכננת]]-הוצאות_משפטיות[[#This Row],[עלות בפועל]]","v":{"v":0,"d":"₪ 0"}}]
[null,"תרופות",null,null,{"$f":"בריאות_וטיפוח[[#This Row],[עלות מתוכננת]]-בריאות_וטיפוח[[#This Row],[עלות בפועל]]","v":{"v":0,"d":"₪ 0"}},null,"סה\"כ",{"$f":"SUBTOTAL(109,הוצאות_משפטיות[עלות מתוכננת])","v":{"v":0,"d":"₪ 0"}},{"$f":"SUBTOTAL(109,הוצאות_משפטיות[עלות בפועל])","v":{"v":0,"d":"₪ 0"}},{"$f":"SUBTOTAL(109,הוצאות_משפטיות[הפרש])","v":{"v":0,"d":"₪ 0"}}]
[null,"שיער/ציפורניים",null,null,{"$f":"בריאות_וטיפוח[[#This Row],[עלות מתוכננת]]-בריאות_וטיפוח[[#This Row],[עלות בפועל]]","v":{"v":0,"d":"₪ 0"}}]
[null,"בגדים",null,null,{"$f":"בריאות_וטיפוח[[#This Row],[עלות מתוכננת]]-בריאות_וטיפוח[[#This Row],[עלות בפועל]]","v":{"v":0,"d":"₪ 0"}}]
[null,"ניקוי יבש",null,null,{"$f":"בריאות_וטיפוח[[#This Row],[עלות מתוכננת]]-בריאות_וטיפוח[[#This Row],[עלות בפועל]]","v":{"v":0,"d":"₪ 0"}}]
[null,"מועדון בריאות",null,null,{"$f":"בריאות_וטיפוח[[#This Row],[עלות מתוכננת]]-בריאות_וטיפוח[[#This Row],[עלות בפועל]]","v":{"v":0,"d":"₪ 0"}}]
[null,"תשלומים או עמלות של ארגון",null,null,{"$f":"בריאות_וטיפוח[[#This Row],[עלות מתוכננת]]-בריאות_וטיפוח[[#This Row],[עלות בפועל]]","v":{"v":0,"d":"₪ 0"}}]
[null,"אחר",null,null,{"$f":"בריאות_וטיפוח[[#This Row],[עלות מתוכננת]]-בריאות_וטיפוח[[#This Row],[עלות בפועל]]","v":{"v":0,"d":"₪ 0"}}]
[null,"סה\"כ",{"$f":"SUBTOTAL(109,בריאות_וטיפוח[עלות מתוכננת])","v":{"v":0,"d":"₪ 0"}},{"$f":"SUBTOTAL(109,בריאות_וטיפוח[עלות בפועל])","v":{"v":0,"d":"₪ 0"}},{"$f":"SUBTOTAL(109,בריאות_וטיפוח[הפרש])","v":{"v":0,"d":"₪ 0"}}]